Cogmind - Beta 9.1 @@@ ROGUE MODE // 2019.11.09 @ 16:14:19 Player: moep Result: Destroyed by D-53 Grenadier with Mini Grenade Launcher Performance ------------- Evolutions (0) 0 Regions Visited (2) 400 Robots Destroyed (6) 30 Value Destroyed (30) 30 Prototype IDs (0) 0 Alien Tech Used (0) 0 Bonus (0) 0 TOTAL SCORE: 460 Bonus ------- None Cogmind --------- Core Integrity 0/250 Matter 262/300 Energy 100/100 System Corruption 2% Temperature Cool (0) Location -10/Mines Parts ------- Power (1) Propulsion (2) Aluminum Leg Aluminum Leg Utility (2) Small Storage Unit ECM Suite Weapon (2) Inventory (6) Light Ion Engine Wheel Peak State ------------ Power Light Ion Engine Propulsion Light Treads Light Treads Utility Small Storage Unit ECM Suite Weapon EM Pulse Gun Small Laser Inventory Light Ion Engine Aluminum Leg Aluminum Leg Wheel [Rating: 7] Favorites ----------- Power Light Ion Engine Engine Light Ion Engine Propulsion Light Treads Treads Light Treads Leg Aluminum Leg Wheel Wheel Utility Small Storage Unit Device ECM Suite Storage Small Storage Unit Weapon Small Laser Energy Gun Small Laser Ballistic Gun Light Assault Rifle Launcher Grenade Launcher Build | -11 -10 -10 ------- Run | Scr Mat Min Slots Evolved . | . . . Power . | . . . Propulsion . | . . . Utility . | . . . Weapon . | . . . Parts Attached 13 | 7 1 5 Power 1 | 1 . . Engine 1 | 1 . . Core . | . . . Reactor . | . . . Propulsion 6 | 3 . 3 Treads 2 | 2 . . Leg 2 | . . 2 Wheel 2 | 1 . 1 Hover . | . . . Flight . | . . . Utility 2 | 1 1 . Device 1 | . 1 . Storage 1 | 1 . . Processor . | . . . Hackware . | . . . Protection . | . . . Artifact . | . . . Weapon 4 | 2 . 2 Energy Gun 2 | 2 . . Energy Cannon . | . . . Ballistic Gun 1 | . . 1 Ballistic Cannon . | . . . Launcher 1 | . . 1 Special Weapon . | . . . Impact Weapon . | . . . Slashing Weapon . | . . . Piercing Weapon . | . . . Special Melee Weapon . | . . . Unidentified Prototypes . | . . . Parts Lost 8 | . . 8 Power 1 | . . 1 Propulsion 3 | . . 3 Utility . | . . . Weapon 4 | . . 4 Highest Loss Streak 7 | . . 7 Average Slot Usage (%) 87 | . 98 81 Engine 10 | . 14 8 Treads 21 | . 28 18 Leg 3 | . . 4 Device 13 | . 12 14 Storage 14 | . 14 14 Energy Gun 15 | . 28 9 Ballistic Gun 1 | . . 1 Launcher 4 | . . 7 Naked Turns . | . . . Heaviest Build 12 | 10 11 12 Greatest Support 20 | 20 20 20 Greatest Overweight (x) 2 | 2 . 2 Average Overweight (x) . | . . . Largest Inventory Capacity 6 | 6 6 6 Average Capacity 5 | 5 6 6 Most Carried 5 | 4 5 5 Average Carried 4 | 2 4 4 Final Capacity 6 | 6 6 6 Final Carried 5 | 4 5 2 Class Distribution -------------------- 100% | Mutant Dominant Class ---------------- Mutant | -10/Materials Mutant | -10/Mines Resources | -11 -10 -10 ----------- Run | Scr Mat Min Matter Collected 286 | 251 . 35 Remotely . | . . . Salvage Created 73 | . . 73 Parts 4 | . . 4 Haulers Intercepted . | . . . Recyclers Shooed . | . . . Parts Field Recycled . | . . . Retrieved Matter . | . . . Parts Self-Destructed . | . . . Prevented . | . . . Kills | -11 -10 -10 ------- Run | Scr Mat Min Combat Hostiles Destroyed 6 | . . 6 Guns 4 | . . 4 AOE 2 | . . 2 Classes Destroyed 2 | . . 2 Swarmer 3 | . . 3 Assembled 3 | . . 3 Best Kill Streak 3 | . . 3 Combat Bots Only 3 | . . 3 Max Kills in Single Turn 2 | . . 2 Gunslinging . | . . . Exploded 2 | . . 2 Melee . | . . . Uniques/NPCs Destroyed . | . . . Combat | -11 -10 -10 -------- Run | Scr Mat Min Damage Taken 1045 | . . 1045 Core 267 | . . 267 Absorbed by Shields . | . . . Core Remaining (%) 100 | 100 . . Volleys Fired 16 | . . 16 Largest 2 | . . 2 Hottest 80 | . . 80 Shots Fired 20 | . . 20 Gun 17 | . . 17 Cannon . | . . . Launcher 3 | . . 3 Special . | . . . Kinetic 4 | . . 4 Thermal 9 | . . 9 Explosive 3 | . . 3 Electromagnetic 4 | . . 4 Robot Hit Streak 3 | . . 3 Robot Miss Streak 2 | . . 2 Penetration Max . | . . . Secondary Targets . | . . . Shots Hit Robots 10 | . . 10 Core Hits 14 | . . 14 Critical Hits . | . . . Critical Kills . | . . . Critical Parts Destroyed . | . . . Melee Attacks . | . . . Impact . | . . . Slashing . | . . . Piercing . | . . . Sneak Attacks . | . . . Combat Hostiles . | . . . Follow-up Attacks . | . . . Damage Inflicted 328 | . . 328 Guns 113 | . . 113 Cannons . | . . . Explosions 215 | . . 215 Melee . | . . . Ramming . | . . . Kinetic 16 | . . 16 Thermal 65 | . . 65 Explosive 215 | . . 215 Electromagnetic 32 | . . 32 Impact . | . . . Slashing . | . . . Piercing . | . . . Highest Corruption 2 | . . 2 Average Corruption 1 | . . 1 Corruption Purged . | . . . Overload Shots . | . . . Overflow Damage . | . . . Projectiles . | . . . Explosions . | . . . Melee . | . . . Knockbacks . | . . . Impact . | . . . Kinetic . | . . . Secondary . | . . . Self-Inflicted Damage 40 | . . 40 Shots 1 | . . 1 Rammed . | . . . Targets Rammed . | . . . Kicked . | . . . Crushed . | . . . Highest Temperature 72 | . . 72 Average Temperature 34 | . . 34 Received Heat Transfer 340 | . . 340 Siege Activations . | . . . Robots Corrupted . | . . . Combat Hostiles . | . . . Parts Fried . | . . . Impact Corruptions . | . . . Robots Melted . | . . . Combat Hostiles . | . . . Parts Melted . | . . . Heat Transferred 150 | . . 150 Parts Sabotaged . | . . . Parts Stolen . | . . . Parts Stripped . | . . . Power Chain Reactions . | . . . Missiles Intercepted . | . . . Alert | -11 -10 -10 ------- Run | Scr Mat Min Peak Influence 75 | . . 75 Average Influence 26 | . . 48 Maximum Alert Level . | . . . Low Security (%) 100 | . . . Level 1 . | . . . Level 2 . | . . . Level 3 . | . . . Level 4 . | . . . Level 5 . | . . . High Security . | . . . Max Security . | . . . Squads Dispatched 1 | . 1 . Investigation 1 | . 1 . Extermination . | . . . Reinforcement . | . . . Assault . | . . . Garrison . | . . . Intercept . | . . . Construction Impeded . | . . . Haulers Reinforced . | . . . Stealth | -11 -10 -10 --------- Run | Scr Mat Min Distress Signals 1 | . 1 . Communications Jammed . | . . . Distress Signals . | . . . Times Spotted 21 | . . 21 Peak Tracking Total 10 | . . 10 Tactical Retreats 2 | . . 2 Traps | -11 -10 -10 ------- Run | Scr Mat Min Traps Triggered 1 | . 1 . Indirectly . | . . . Trap Hack Attempts . | . . . Triggered . | . . . Disarmed . | . . . Reprogrammed . | . . . Reused . | . . . Traps Extracted . | . . . Installed . | . . . Triggered . | . . . Machines | -11 -10 -10 ---------- Run | Scr Mat Min Machines Disabled . | . . . Max in Single Turn . | . . . Machines Sabotaged . | . . . Garrisons Compromised . | . . . Overloaded Fab Kills . | . . . Fab Network Shutdowns . | . . . Hacking | -11 -10 -10 --------- Run | Scr Mat Min Machines Accessed . | . . . Terminals . | . . . Fabricators . | . . . Repair Stations . | . . . Recycling Units . | . . . Scanalyzers . | . . . Garrison Access . | . . . Total Hacks . | . . . Successful . | . . . Failed . | . . . Catastrophic . | . . . Database Lockouts . | . . . Manual . | . . . Terminals . | . . . Fabricators . | . . . Repair Stations . | . . . Recycling Units . | . . . Scanalyzers . | . . . Garrison Access . | . . . Terminal Hacks . | . . . Fabricator Hacks . | . . . Repair Station Hacks . | . . . Recycling Unit Hacks . | . . . Scanalyzer . | . . . Garrison Access Hacks . | . . . Unauthorized Hacks . | . . . Terminals . | . . . Fabricators . | . . . Repair Stations . | . . . Recycling Units . | . . . Scanalyzers . | . . . Garrison Access . | . . . Data Cores Recovered . | . . . Used . | . . . Hacking Detections . | . . . Full Trace Events . | . . . Feedback Events . | . . . Feedback Blocked . | . . . Robot Schematics Acquired . | . . . Robots Built . | . . . Matter . | . . . Time . | . . . Total Robot Build Rating . | . . . Part Schematics Acquired . | . . . Parts Built . | . . . Matter . | . . . Time . | . . . Total Part Build Rating . | . . . Parts Repaired . | . . . Time . | . . . Parts Recycled . | . . . Recycled Matter . | . . . Retrieved Matter . | . . . Retrieved Components . | . . . Parts Scanalyzed . | . . . Part Schematics Acquired . | . . . Parts Damaged . | . . . Bothacking | -11 -10 -10 ------------ Run | Scr Mat Min Used RIF Installer . | . . . Robots Hacked . | . . . Non-combat . | . . . Combat . | . . . Robot Hacks Applied . | . . . Relay Couplers Released . | . . . Robots Rewired . | . . . Allies Hacked . | . . . Hacks Repelled . | . . . Allies | -11 -10 -10 -------- Run | Scr Mat Min Total Allies . | . . . Largest Group . | . . . Highest-Rated Group . | . . . Highest-Rated Ally . | . . . Total Orders . | . . . Ally Attacks . | . . . Total Damage . | . . . Kills . | . . . Allies Corrupted . | . . . Allies Melted . | . . . Intel | -11 -10 -10 ------- Run | Scr Mat Min Robot Analysis Total . | . . . Derelict Logs Recovered . | . . . Drone Launches . | . . . Drone Recoveries . | . . . Exploration | -11 -10 -10 ------------- Run | Scr Mat Min Turns Passed 421 | 79 118 224 Spaces Moved 255 | 47 69 139 Core 33 | 8 . 25 Treads 169 | 35 69 65 Legs 27 | . . 27 Wheels 26 | 4 . 22 Hover . | . . . Flight . | . . . Fastest Speed 50 | 50 160 80 Average Speed 140 | 140 160 130 Slowest Speed 160 | 160 160 160 Overloaded Moves . | . . . Propulsion Burnouts . | . . . Robots Hopped . | . . . Cave-ins Triggered . | . . . Exploration Rate (%) 22 | 3 15 48 Regions Visited 2 Branch Regions 1 Pre-discovered Areas . | . . . Known Exits Taken . | . . . Unknown Exits Taken 2 | 1 1 . Scrap Searched . | . . . Spaces Dug . | . . . Terrain Destroyed 18 | . . 18 Melee . | . . . Projectile . | . . . AOE 18 | . . 18 Actions | -11 -10 -10 --------- Run | Scr Mat Min Total 295 | 57 76 162 Wait 7 | . 6 1 Move 253 | 46 68 139 Hop . | . . . Pick Up 5 | 3 1 1 Fast Attach 9 | 7 1 1 Attach 4 | . . 4 Detach 1 | 1 . . Swap . | . . . Drop . | . . . Fire 16 | . . 16 Melee . | . . . Ram . | . . . Kick . | . . . Crush . | . . . Escape Stasis . | . . . Rewire . | . . . Trap . | . . . Miscellaneous . | . . . Route ------- -11/Scrapyard -10/Materials -10/Mines (discovered 1 exit: [*Mat]) History --------- Turn | Location | Event 25 | -11/Scrapyard | Discovered new exit (range 16) 80 | -11/Scrapyard | Entered Materials 153 | -10/Materials | Discovered new exit (range 13) 198 | -10/Materials | Entered Mines 305 | -10/Mines | Assembled infested the area 310 | -10/Mines | Assisted by a Guerilla fighting off Assembled 315 | -10/Mines | Build established: Mutant 376 | -10/Mines | Core integrity fell below 50% 389 | -10/Mines | Core integrity fell below 20% 415 | -10/Mines | Discovered new exit (range 10) 419 | -10/Mines | Lost 7 parts (1p3n3w) 422 | -10/Mines | Destroyed by D-53 Grenadier with Mini Grenade Launcher Last Messages --------------- 00330_ as-35930 destroyed. 00330_ as-14712 destroyed. 00331_ Grenade Launcher destroyed. 00331_ Lgt. Treads destroyed. 00339_ Lgt. Ion Engine destroyed. 00339_ System corrupted by crushing effect (+1). 00339_ Knocked back. 00339_ HV Slug penetrates Wall. 00339_ P1-M92(h) destroyed. 00353_ as-08795 sneak attacks. 00353_ T-07 Excavator destroyed. 00353_ as-08795 destroyed. 00357_ Acquired 8 matter. 00359_ Acquired Wheel. 00360_ Lgt. Treads destroyed. 00377_ Wheel destroyed. 00388_ Lgt. Assault Rifle destroyed. 00398_ S-10 Pest destroyed. 00409_ K-01 Serf collects debris. 00415_ EXIT=FOUND Map ----- +----------------------------------------------------+ | ?????????????????????????????????????????????????? | | ?????????????????????????????????????????????????? | | ?????????????????????????????????????????????????? | | ?????????????????????????????????????????????????? | | ?????????????????????????????????????????????????? | | ?????????????????????????????????????????????????? | | ?????????????????????????????????????????????????? | | ?????????????????????????????????????????????????? | | ?????????????????????????????????????????????????? | | ?????????????????????????????????????????????????? | | ????????????????????????? ???????????????????????? | | ????????????????????????? ??? ??? ?????????????? | | ???????????????????g ???? ??? ??? #????????????? | | ???????????????????? ? ?? ??? ??? #????????????? | | ???????????????????? "" "?? ??? #????????????? | | ????????????????????#k" " "?" "?" #????????????? | | ????????????????????# """d"?" "?" #????????????? | | ????????????????????# #????????????? | | ????????????????????# """ """ #????????????? | | ????????????????????# """ """ #????????????? | | ????????????????????# """ """ #????????????? | | ????????????????????# < #????????????? | | ????????????????????# """ """ #????????????? | | ????????????????????# """ """ ########?????? | | ????????????????????# """ """ #?????? | | ????????????????????# @ #???# #?????? | | ????????????????????# #???# #?????? | | ????????????????????############a ###???# #?????? | | ???????????????????????????????# #????## ####### | | ?????????????? ????????????????# #???## ## # | | ?????????????? ????????????????# ##### | | ?????????????? ????????????????# * | | ?????????????? ????????????????# =%=%=# | | ?????????????? "???????????????#### ## * [ # | | ?????????????? "?????????????????## #### | | ?????????????? "????????????????## #??# | | ????? # ????# ????????????????# #??# | | ?????!%* %???# #????####????????# ##?? # | | ??????? ??# #???## ##???????# ##?? ## | | ???????## #?# #??## ##??????# ##?? #? | | ???????# ## #?## ##?????## ##??### #? | | ???????# #?# #??????# ##?????#### #? | | ???????# """ ### #??????# #?????????# #? | | ????????# """ ######### #### #????# #? | | ???####?# """ #### #???? #? | | ?### #### #??### %= ######???? ? | | # ##### ##????## ##### ####??????????##?? | | #####??## ##???# #????????????????? | | #???####????# ????????????????? | | % % ### #???????????## #???????????????? | +----------------------------------------------------+ Best States ------------- Heat Dissipation 25 Energy Generation 10 Energy Capacity 125 Matter Stores 283 Matter Capacity 300 Sight Range 16 Terrain Scan Density 10 Evasion (%) 44 Recoil Reduction 1 Item Schematics ----------------- None Robot Schematics ------------------ None Fabricated ------------ Nothing Alien Tech Used ----------------- None Achievements -------------- None Challenges ------------ None Game ------ Seed TransdimensionalTrapRail Manual? 0 Play Time 00:09:32 Cumulative 3.6 hours Start 2019.11.09 @ 16:04:41 End 2019.11.09 @ 16:14:19 Sessions 1 Manual Loads 0 Difficulty Rogue Special Mode None Game No. 11 Rogue 11 Adventurer 0 Explorer 0 Win Type - Total 0 Types 0/0/0/0/0/0/0 Lore% 1 Gallery% 6 Achievement% 2 Wizard Run 0 Options --------- ASCII 1 Keyboard 1 Movement Numpad Keybinds 0 Fullscreen 1 Font 24/Proggy Map View 76x50 Tactical HUD 1 Map Filters NONE Filters NONE Steam 1 RUN: ee01383c-0f4a-4fce-8977-f1b8ad18e06a